lending/lending_fUSD_20250706
["ID","MTS","AMOUNT","RATE_DAILY","PERIOD"]
[369925253,1751783464237,-523.36,0.00019178,2]
[369925254,1751783464247,-460.0,0.00019178,2]
[369925255,1751783464256,-460.0,0.00019178,2]
[369925256,1751783464266,-663.94,0.00019178,2]
[369925257,1751783464275,-460.0,0.00019178,2]
[369925258,1751783464284,-460.0,0.00019178,2]
[369925259,1751783464294,-460.0,0.00019178,2]
[369925260,1751783464303,-460.0,0.00019178,2]
[369925261,1751783464312,-460.0,0.00019178,2]
[369925262,1751783464322,-1287.23,0.00019178,2]
[369925263,1751783464331,-460.0,0.00019178,2]
[369925264,1751783464340,-460.0,0.00019178,2]
[369925265,1751783464350,-460.0,0.00019178,2]
[369925266,1751783464359,-460.0,0.00019178,2]
[369925267,1751783464369,-500.0,0.00019178,2]
[369925268,1751783464379,-460.0,0.00019178,2]
[369925269,1751783464389,-500.0,0.00019178,2]
[369925270,1751783464398,-500.0,0.00019178,2]
[369925271,1751783464407,-500.0,0.00019178,2]
[369925272,1751783464417,-460.0,0.00019178,2]
[369925273,1751783464428,-500.0,0.00019178,2]
[369925274,1751783464437,-460.0,0.00019178,2]
[369925275,1751783464447,-460.0,0.00019178,2]
[369925276,1751783464456,-460.0,0.00019178,2]
[369925277,1751783464466,-500.0,0.00019178,2]
[369925278,1751783464476,-507.61506188,0.00019178,2]
[369925279,1751783464486,-460.0,0.00019178,2]
[369925280,1751783464495,-460.0,0.00019178,2]
[369925281,1751783464506,-483.89,0.00019178,2]
[369925282,1751783464516,-464.33026653,0.00019178,2]
[369925283,1751783464525,-460.0,0.00019178,2]
[369925284,1751783464535,-460.0,0.00019178,2]
[369925285,1751783464672,-460.0,0.00019178,2]
[369925286,1751783464682,-460.0,0.00019178,2]
[369925287,1751783464692,-460.0,0.00019178,2]
[369925288,1751783464701,-460.0,0.00019178,2]
[369925289,1751783464711,-460.0,0.00019178,2]
[369925290,1751783464722,-2335.74,0.00019178,2]
[369925291,1751783464732,-460.0,0.00019178,2]
[369925292,1751783464742,-462.75640009,0.00019178,2]
[369925293,1751783464752,-460.0,0.00019178,2]
[369925294,1751783464761,-460.0,0.00019178,2]
[369925295,1751783464770,-460.0,0.00019178,2]
[369925296,1751783464779,-894.92,0.00019178,2]
[369925297,1751783464789,-460.0,0.00019178,2]
[369925298,1751783464801,-460.0,0.00019178,2]
[369925299,1751783464810,-460.0,0.00019178,2]
[369925300,1751783464821,-460.0,0.00019178,2]
[369925301,1751783464831,-460.0,0.00019178,2]
[369925302,1751783464841,-460.0,0.00019178,2]
[369925303,1751783464851,-460.0,0.00019178,2]
[369925304,1751783464861,-460.0,0.00019178,2]
[369925305,1751783464870,-460.0,0.00019178,2]
[369925306,1751783464880,-460.0,0.00019178,2]
[369925307,1751783464890,-460.0,0.00019178,2]
[369925308,1751783464899,-460.0,0.00019178,2]
[369925309,1751783464909,-460.0,0.00019178,2]
[369925310,1751783464926,-460.0,0.00019178,2]
[369925311,1751783464937,-460.0,0.00019178,2]
[369925312,1751783464947,-460.0,0.00019178,2]
[369925313,1751783464956,-720.23,0.00019178,2]
[369925314,1751783464966,-460.0,0.00019178,2]
[369925315,1751783464976,-460.0,0.00019178,2]
[369925316,1751783464985,-973.39,0.00019178,2]
[369925317,1751783464994,-460.0,0.00019178,2]
[369925318,1751783465004,-902.1,0.00019178,2]
[369925319,1751783465013,-524.60754714,0.00019178,2]
[369925320,1751783465023,-460.0,0.00019178,2]
[369925321,1751783465032,-460.0,0.00019178,2]
[369925322,1751783465041,-460.0,0.00019178,2]
[369925323,1751783465050,-460.0,0.00019178,2]
[369925324,1751783465060,-460.0,0.00019178,2]
[369925325,1751783465069,-460.0,0.00019178,2]
[369925326,1751783465078,-460.0,0.00019178,2]
[369925327,1751783465088,-460.0,0.00019178,2]
[369925328,1751783465097,-542.68,0.00019178,2]
[369925329,1751783465107,-460.0,0.00019178,2]
[369925330,1751783465116,-460.0,0.00019178,2]
[369925331,1751783465125,-460.0,0.00019178,2]
[369925332,1751783465134,-460.0,0.00019178,2]
[369925333,1751783465144,-1591.6,0.00019178,2]
[369925334,1751783465153,-460.0,0.00019178,2]
[369925335,1751783465162,-660.12,0.00019178,2]
[369925336,1751783465172,-460.0,0.00019178,2]
[369925337,1751783465181,-460.0,0.00019178,2]
[369925338,1751783465191,-460.0,0.00019178,2]
[369925339,1751783465200,-460.0,0.00019178,2]
[369925340,1751783465209,-460.0,0.00019178,2]
[369925341,1751783465219,-460.0,0.00019178,2]
[369925342,1751783465228,-460.0,0.00019178,2]
[369925343,1751783465237,-460.0,0.00019178,2]
[369925344,1751783465247,-460.0,0.00019178,2]
[369925345,1751783465256,-460.0,0.00019178,2]
[369925346,1751783465265,-460.0,0.00019178,2]
[369925347,1751783465275,-460.0,0.00019178,2]
[369925348,1751783465284,-460.0,0.00019178,2]
[369925349,1751783465293,-460.0,0.00019178,2]
[369925350,1751783465303,-460.0,0.00019178,2]
[369925351,1751783465312,-460.0,0.00019178,2]
[369925352,1751783465322,-460.0,0.00019178,2]
[369925353,1751783465331,-624.8,0.00019178,2]
[369925354,1751783465341,-460.0,0.00019178,2]
[369925355,1751783465350,-460.0,0.00019178,2]
[369925356,1751783465359,-460.0,0.00019178,2]
[369925357,1751783465369,-460.0,0.00019178,2]
[369925358,1751783465379,-492.36938043,0.00019178,2]
[369925359,1751783465388,-460.0,0.00019178,2]
[369925360,1751783465398,-460.0,0.00019178,2]
[369925361,1751783465407,-460.0,0.00019178,2]
[369925362,1751783465417,-824.22,0.00019178,2]
[369925363,1751783465426,-460.0,0.00019178,2]
[369925364,1751783465436,-460.0,0.00019178,2]
[369925365,1751783465446,-460.0,0.00019178,2]
[369925366,1751783465455,-460.0,0.00019178,2]
[369925367,1751783465464,-555.71,0.00019178,2]
[369925368,1751783465474,-460.0,0.00019178,2]
[369925369,1751783465483,-504.21445068,0.00019178,2]
[369925370,1751783465493,-460.0,0.00019178,2]
[369925371,1751783465502,-460.0,0.00019178,2]
[369925372,1751783465512,-460.0,0.00019178,2]
[369925373,1751783465522,-460.0,0.00019178,2]
[369925374,1751783465531,-663.32,0.00019178,2]
[369925375,1751783465540,-500.60145825,0.00019178,2]
[369925376,1751783465550,-460.0,0.00019178,2]
[369925377,1751783465559,-460.0,0.00019178,2]
[369925378,1751783465570,-568.91,0.00019178,2]
[369925379,1751783465580,-630.61,0.00019178,2]
[369925380,1751783465589,-460.0,0.00019178,2]
[369925381,1751783465599,-460.0,0.00019178,2]
[369925382,1751783465609,-460.0,0.00019178,2]
[369925383,1751783465618,-460.0,0.00019178,2]
[369925384,1751783465628,-534.69,0.00019178,2]
[369925385,1751783465637,-460.0,0.00019178,2]
[369925386,1751783465647,-460.0,0.00019178,2]
[369925387,1751783465656,-460.0,0.00019178,2]
[369925388,1751783465665,-460.0,0.00019178,2]
[369925389,1751783465675,-1351.87,0.00019178,2]
[369925390,1751783465685,-460.0,0.00019178,2]
[369925391,1751783465695,-801.1,0.00019178,2]
[369925392,1751783465705,-460.0,0.00019178,2]
[369925393,1751783465715,-460.0,0.00019178,2]
[369925394,1751783465726,-460.0,0.00019178,2]
[369925395,1751783465737,-688.68,0.00019178,2]
[369925396,1751783465746,-473.43418329,0.00019178,2]
[369925397,1751783465756,-566.39,0.00019178,2]
[369925398,1751783465765,-460.0,0.00019178,2]
[369925399,1751783465775,-460.0,0.00019178,2]
[369925400,1751783465784,-460.0,0.00019178,2]
[369925401,1751783465794,-460.0,0.00019178,2]
[369925402,1751783465804,-460.0,0.00019178,2]
[369925403,1751783465814,-604.56,0.00019178,2]
[369925404,1751783465823,-500.0,0.00019178,2]
[369925405,1751783465832,-435.4489647,0.00019178,2]
[369925406,1751783465842,-1708.74,0.00019178,2]
[369925407,1751783465851,-460.0,0.00019178,2]
[369925408,1751783465861,-460.0,0.00019178,2]
[369925409,1751783465870,-460.0,0.00019178,2]
[369925410,1751783465880,-460.0,0.00019178,2]
[369925411,1751783465890,-460.0,0.00019178,2]
[369925412,1751783465900,-460.0,0.00019178,2]
[369925413,1751783465910,-460.0,0.00019178,2]
[369925414,1751783465922,-971.83,0.00019178,2]
[369925415,1751783465932,-460.0,0.00019178,2]
[369925416,1751783465942,-518.45,0.00019178,2]
[369925417,1751783465952,-460.0,0.00019178,2]
[369925418,1751783465963,-460.0,0.00019178,2]
[369925419,1751783465973,-460.0,0.00019178,2]
[369925420,1751783465984,-1000.0,0.00019178,2]
[369925421,1751783465995,-613.23,0.00019178,2]
[369925422,1751783466005,-460.0,0.00019178,2]
[369925423,1751783466014,-460.0,0.00019178,2]
[369925424,1751783466024,-562.64,0.00019178,2]
[369925425,1751783466033,-506.65481196,0.00019178,2]
[369925426,1751783466042,-460.0,0.00019178,2]
[369925427,1751783466051,-460.0,0.00019178,2]
[369925428,1751783466060,-151.0,0.00019178,2]
[369925429,1751783466069,-151.0,0.00019178,2]
[369925430,1751783466079,-460.0,0.00019178,2]
[369925431,1751783466088,-33904.55,0.00019178,2]
[369925432,1751783466098,-581.14,0.00019178,2]
[369925433,1751783466107,-460.0,0.00019178,2]
[369925434,1751783466117,-460.0,0.00019178,2]
[369925435,1751783466126,-460.0,0.00019178,2]
[369925436,1751783466135,-614.99,0.00019178,2]
[369925437,1751783466144,-460.0,0.00019178,2]
[369925438,1751783466153,-460.0,0.00019178,2]
[369925439,1751783466163,-460.0,0.00019178,2]
[369925440,1751783466172,-460.0,0.00019178,2]
[369925441,1751783466181,-460.0,0.00019178,2]
[369925442,1751783466190,-542.21,0.00019178,2]
[369925443,1751783466200,-460.0,0.00019178,2]
[369925444,1751783466209,-460.0,0.00019178,2]
[369925445,1751783466218,-460.0,0.00019178,2]
[369925446,1751783466227,-699.05,0.00019178,2]
[369925447,1751783466237,-460.0,0.00019178,2]
[369925448,1751783466246,-460.0,0.00019178,2]
[369925449,1751783466255,-569.48731167,0.00019178,2]
[369925450,1751783466264,-460.0,0.00019178,2]
[369925451,1751783466274,-460.0,0.00019178,2]
[369925452,1751783466284,-460.0,0.00019178,2]
[369925453,1751783466293,-460.0,0.00019178,2]
[369925454,1751783466303,-460.0,0.00019178,2]
[369925455,1751783466312,-721.88,0.00019178,2]
[369925456,1751783466321,-460.0,0.00019178,2]
[369925457,1751783466330,-1324.34,0.00019178,2]
[369925458,1751783466340,-460.0,0.00019178,2]
[369925459,1751783466349,-460.0,0.00019178,2]
[369925460,1751783466359,-460.0,0.00019178,2]
[369925461,1751783466368,-743.57,0.00019178,2]
[369925462,1751783466378,-1022.87,0.00019178,2]
[369925463,1751783466388,-1385.61,0.00019178,2]
[369925464,1751783466398,-460.0,0.00019178,2]
[369925465,1751783466408,-460.0,0.00019178,2]
[369925466,1751783466417,-460.0,0.00019178,2]
[369925467,1751783466427,-469.54494096,0.00019178,2]
[369925468,1751783466437,-460.0,0.00019178,2]
[369925469,1751783466447,-460.0,0.00019178,2]
[369925470,1751783466457,-460.0,0.00019178,2]
[369925471,1751783466466,-460.0,0.00019178,2]
[369925472,1751783466476,-460.0,0.00019178,2]
[369925473,1751783466486,-460.0,0.00019178,2]
[369925474,1751783466496,-460.0,0.00019178,2]
[369925475,1751783466506,-460.0,0.00019178,2]
[369925476,1751783466515,-460.0,0.00019178,2]
[369925477,1751783466526,-460.0,0.00019178,2]
[369925478,1751783466536,-460.0,0.00019178,2]
[369925479,1751783466545,-404.40045206,0.00019178,2]
[369925480,1751783466555,-179.2014023,0.00019178,2]
[369925481,1751783466565,-460.0,0.00019178,2]
[369925482,1751783466574,-566.46,0.00019178,2]
[369925483,1751783466583,-460.0,0.00019178,2]
[369925484,1751783466593,-460.0,0.00019178,2]
[369925485,1751783466602,-460.0,0.00019178,2]
[369925486,1751783466612,-460.0,0.00019178,2]
[369925487,1751783466621,-460.0,0.00019178,2]
[369925488,1751783466631,-460.0,0.00019178,2]
[369925489,1751783466641,-460.0,0.00019178,2]
[369925490,1751783466651,-460.0,0.00019178,2]
[369925491,1751783466661,-500.0,0.00019178,2]
[369925492,1751783466670,-500.0,0.00019178,2]
[369925493,1751783466680,-460.0,0.00019178,2]
[369925494,1751783466689,-500.0,0.00019178,2]
[369925495,1751783466699,-500.0,0.00019178,2]
[369925496,1751783466709,-460.0,0.00019178,2]
[369925497,1751783466718,-460.0,0.00019178,2]
[369925498,1751783466728,-638.03,0.00019178,2]
[369925499,1751783466737,-460.0,0.00019178,2]
[369925500,1751783466747,-460.0,0.00019178,2]
[369925501,1751783466756,-460.0,0.00019178,2]
[369925502,1751783466766,-460.0,0.00019178,2]
[369925503,1751783466776,-461.65707254,0.00019178,2]
[369925504,1751783466786,-460.0,0.00019178,2]
[369925505,1751783466795,-460.0,0.00019178,2]
[369925506,1751783466805,-1113.54,0.00019178,2]
[369925507,1751783466814,-460.0,0.00019178,2]
[369925508,1751783466823,-460.0,0.00019178,2]
[369925509,1751783466833,-460.0,0.00019178,2]
[369925510,1751783466843,-460.0,0.00019178,2]
[369925511,1751783466853,-460.0,0.00019178,2]
[369925512,1751783466863,-460.0,0.00019178,2]
[369925513,1751783466872,-675.1,0.00019178,2]
[369925514,1751783466882,-500.0,0.00019178,2]
[369925515,1751783466892,-500.0,0.00019178,2]
[369925516,1751783466902,-500.0,0.00019178,2]
[369925517,1751783466911,-460.0,0.00019178,2]
[369925518,1751783466924,-500.0,0.00019178,2]
[369925519,1751783466933,-460.0,0.00019178,2]
[369925520,1751783466943,-500.0,0.00019178,2]
[369925521,1751783466953,-575.45,0.00019178,2]
[369925522,1751783466963,-500.0,0.00019178,2]
[369925523,1751783466973,-460.0,0.00019178,2]
[369925524,1751783466982,-500.0,0.00019178,2]
[369925525,1751783466991,-500.0,0.00019178,2]
[369925526,1751783467001,-460.0,0.00019178,2]
[369925527,1751783467011,-345.81958689,0.00019178,2]
[369925528,1751783467021,-460.0,0.00019178,2]
[369925529,1751783467030,-538.37,0.00019178,2]
[369925530,1751783467041,-556.4,0.00019178,2]
[369925531,1751783467051,-460.0,0.00019178,2]
[369925532,1751783467061,-460.0,0.00019178,2]
[369925533,1751783467071,-556.4,0.00019178,2]
[369925534,1751783467080,-556.4,0.00019178,2]
[369925535,1751783467090,-460.0,0.00019178,2]
[369925536,1751783467100,-556.4,0.00019178,2]
[369925537,1751783467109,-324.66834524,0.00019178,2]
[369925538,1751783467119,-460.0,0.00019178,2]
[369925539,1751783467129,-460.0,0.00019178,2]
[369925540,1751783467138,-556.4,0.00019178,2]
[369925541,1751783467148,-460.0,0.00019178,2]
[369925542,1751783467158,-556.4,0.00019178,2]
[369925543,1751783467168,-460.0,0.00019178,2]
[369925544,1751783467178,-556.4,0.00019178,2]
[369925545,1751783467187,-460.0,0.00019178,2]
[369925546,1751783467197,-493.54140116,0.00019178,2]
[369925547,1751783467206,-460.0,0.00019178,2]
[369925548,1751783467215,-523.73751897,0.00019178,2]
[369925549,1751783467225,-460.0,0.00019178,2]
[369925550,1751783467234,-460.0,0.00019178,2]
[369925551,1751783467244,-460.0,0.00019178,2]
[369925552,1751783467254,-460.0,0.00019178,2]
[369925553,1751783467263,-460.0,0.00019178,2]
[369925554,1751783467273,-460.0,0.00019178,2]
[369925555,1751783467283,-460.0,0.00019178,2]
[369925556,1751783467292,-460.0,0.00019178,2]
[369925557,1751783467302,-1009.94,0.00019178,2]
[369925558,1751783467311,-460.0,0.00019178,2]
[369925559,1751783467321,-460.0,0.00019178,2]
[369925560,1751783467330,-460.0,0.00019178,2]
[369925561,1751783467339,-792.48,0.00019178,2]
[369925562,1751783467349,-151.0,0.00019178,2]
[369925563,1751783467358,-151.0,0.00019178,2]
[369925564,1751783467367,-151.0,0.00019178,2]
[369925565,1751783467377,-151.0,0.00019178,2]
[369925566,1751783467387,-156.75494,0.00019178,2]
[369925567,1751783467397,-446.54,0.00019178,2]
[369925568,1751783467407,-150.0,0.00019187,2]
[369925569,1751783467417,-208.0,0.0001919,2]
[369925570,1751783467427,-208.0,0.0001919,2]
[369925571,1751783467436,-2633.17,0.000192,2]
[369925572,1751783467446,-211.0,0.0001921,2]
[369925573,1751783467456,-209.0,0.0001921,2]
[369925574,1751783467465,-697.0,0.00019224,2]
[369925575,1751783467475,-424.0,0.00019224,2]
[369925576,1751783467485,-1003.0,0.00019224,2]
[369925577,1751783467494,-484.0,0.00019224,2]
[369925578,1751783467504,-201.27051433,0.00019224,2]
[369925579,1751783467514,-1253.93283316,0.00019231,2]
[369925580,1751783467657,-159.0365495,0.00019263,2]
[369925581,1751783467682,-500.0,0.00019269,2]
[369925582,1751783467692,-500.0,0.00019284,2]
[369925583,1751783467702,-556.4,0.00019284,2]
[369925584,1751783467711,-159.07,0.00019286,2]
[369925585,1751783467720,-168.0,0.00019299,2]
[369925586,1751783467730,-500.0,0.00019299,2]
[369925587,1751783467739,-500.0,0.00019299,2]
[369925588,1751783467749,-770.22,0.00019299,2]
[369925589,1751783467758,-13057.81888011,0.000193,2]
[369925590,1751783467768,-483.67902391,0.00019306,2]
[369925591,1751783467778,-1253.93283316,0.00019343,2]
[369925592,1751783467787,-500.0,0.00019343,2]
[369925593,1751783467797,-500.0,0.00019343,2]
[369925594,1751783467808,-541.83,0.00019343,2]
[369925595,1751783467817,-200.0,0.0001935,2]
[369925596,1751783467827,-1000.0,0.00019374,2]
[369925597,1751783467836,-836.76783547,0.00019375,2]
[369925598,1751783467846,-200.0,0.00019395,2]
[369925599,1751783467856,-364.0,0.00019398,2]
[369925600,1751783467865,-150.0,0.00019399,2]
[369925601,1751783467875,-208.0,0.000194,2]
[369925602,1751783467884,-208.0,0.000194,2]
[369925603,1751783467894,-27895.27899863,0.000194,2]
[369925604,1751783467903,-250.0,0.000194,7]
[369925605,1751783467913,-200.0,0.000194,2]
[369925606,1751783467925,-200.0,0.00019403,2]
[369925607,1751783467935,-211.0,0.0001941,2]
[369925608,1751783467944,-209.0,0.0001941,2]
[369925609,1751783467953,-364.0,0.00019419,2]
[369925610,1751783467963,-930.5,0.00019424,2]
[369925611,1751783467972,-500.0,0.00019424,2]
[369925612,1751783467981,-223.16392943,0.00019424,2]
[369925613,1751783467991,-559.23,0.00019424,2]
[369925614,1751783468001,-500.0,0.00019424,2]
[369925615,1751783468010,-500.0,0.00019424,2]
[369925616,1751783468019,-1585.4,0.00019424,2]
[369925617,1751783468029,-500.0,0.00019424,2]
[369925618,1751783468039,-541.83,0.00019424,2]
[369925619,1751783468048,-770.22,0.00019424,2]
[369925620,1751783468057,-381.76363741,0.00019424,2]
[369925621,1751783468067,-556.4,0.00019424,2]
[369925622,1751783468076,-164872.0,0.00019425,2]
[369925623,1751783468085,-930.5,0.00019426,2]
[369925624,1751783468094,-3763.66,0.0001943,2]
[369925625,1751783468104,-150.0,0.00019434,2]
[369925626,1751783468113,-200.0,0.00019434,2]
[369925627,1751783468125,-85609.1159177,0.00019439,2]
[369925628,1751783468134,-3652.6893778,0.00019439,2]
[369925629,1751783468143,-17340.5561063,0.00019439,2]
[369925630,1751783468152,-8640.1634046,0.00019439,2]
[369925631,1751783468162,-7653.3301314,0.00019439,2]
[369925632,1751783468172,-930.5,0.00019451,2]
[369925633,1751783468181,-930.5,0.00019451,2]
[369925634,1751783468190,-500.0,0.00019451,2]
[369925635,1751783468199,-318.5593514,0.00019451,2]
[369925636,1751783468208,-559.23,0.00019451,2]
[369925637,1751783468217,-559.23,0.00019451,2]
[369925638,1751783468226,-559.23,0.00019451,2]
[369925639,1751783468235,-500.0,0.00019451,2]
[369925640,1751783468246,-500.0,0.00019451,2]
[369925641,1751783468255,-565.7710126,0.00019451,2]
[369925642,1751783468265,-500.0,0.00019451,2]
[369925643,1751783468275,-500.0,0.00019451,2]
[369925644,1751783468284,-500.0,0.00019451,2]
[369925645,1751783468294,-1585.4,0.00019451,2]
[369925646,1751783468306,-1585.4,0.00019451,2]
[369925647,1751783468316,-1585.4,0.00019451,2]
[369925648,1751783468326,-500.0,0.00019451,2]
[369925649,1751783468336,-500.0,0.00019451,2]
[369925650,1751783468346,-500.0,0.00019451,2]
[369925651,1751783468356,-541.83,0.00019451,2]
[369925652,1751783468365,-541.83,0.00019451,2]
[369925653,1751783468374,-541.83,0.00019451,2]
[369925654,1751783468383,-770.22,0.00019451,2]
[369925655,1751783468393,-770.22,0.00019451,2]
[369925656,1751783468404,-770.22,0.00019451,2]
[369925657,1751783468414,-556.4,0.00019451,2]
[369925658,1751783468425,-556.4,0.00019451,2]
[369925659,1751783468435,-556.4,0.00019451,2]
[369925660,1751783468445,-615.92,0.00019452,2]
[369925661,1751783468454,-460.0,0.00019452,2]
[369925662,1751783468465,-460.0,0.00019452,2]
[369925663,1751783468474,-460.0,0.00019452,2]
[369925664,1751783468486,-460.0,0.00019452,2]
[369925665,1751783468496,-460.0,0.00019452,2]
[369925666,1751783468505,-492.96010596,0.00019452,2]
[369925667,1751783468515,-460.0,0.00019452,2]
[369925668,1751783468524,-460.0,0.00019452,2]
[369925669,1751783468534,-460.0,0.00019452,2]
[369925670,1751783468544,-460.0,0.00019452,2]
[369925671,1751783468555,-496.4071709,0.00019452,2]
[369925672,1751783468565,-460.0,0.00019452,2]
[369925673,1751783468574,-460.0,0.00019452,2]
[369925674,1751783468586,-460.0,0.00019452,2]
[369925675,1751783468596,-460.0,0.00019452,2]
[369925676,1751783468607,-460.0,0.00019452,2]
[369925677,1751783468617,-537.89996552,0.00019452,2]
[369925678,1751783468626,-460.0,0.00019452,2]
[369925679,1751783468635,-461.7,0.00019452,2]
[369925680,1751783468644,-460.0,0.00019452,2]
[369925681,1751783468655,-460.0,0.00019452,2]
[369925682,1751783468664,-460.0,0.00019452,2]
[369925683,1751783468673,-460.0,0.00019452,2]
[369925684,1751783468683,-460.0,0.00019452,2]
[369925685,1751783468692,-460.0,0.00019452,2]
[369925686,1751783468702,-460.0,0.00019452,2]
[369925687,1751783468712,-460.0,0.00019452,2]
[369925688,1751783468721,-460.0,0.00019452,2]
[369925689,1751783468731,-404.38176295,0.00019452,2]
[369925690,1751783468741,-524.50740909,0.00019452,2]
[369925691,1751783468751,-460.0,0.00019452,2]
[369925692,1751783468761,-460.0,0.00019452,2]
[369925693,1751783468771,-539.90318572,0.00019452,2]
[369925694,1751783468781,-460.0,0.00019452,2]
[369925695,1751783468790,-460.0,0.00019452,2]
[369925696,1751783468799,-460.0,0.00019452,2]
[369925697,1751783468809,-460.0,0.00019452,2]
[369925698,1751783468818,-460.0,0.00019452,2]
[369925699,1751783468828,-460.0,0.00019452,2]
[369925700,1751783468839,-460.0,0.00019452,2]
[369925701,1751783468850,-460.0,0.00019452,2]
[369925702,1751783468859,-460.0,0.00019452,2]
[369925703,1751783468869,-526.76724929,0.00019452,2]
[369925704,1751783468879,-460.0,0.00019452,2]
[369925705,1751783468888,-460.0,0.00019452,2]
[369925706,1751783468898,-460.0,0.00019452,2]
[369925707,1751783468907,-460.0,0.00019452,2]
[369925708,1751783468917,-460.0,0.00019452,2]
[369925709,1751783468928,-460.0,0.00019452,2]
[369925710,1751783468937,-460.0,0.00019452,2]
[369925711,1751783468947,-460.0,0.00019452,2]
[369925712,1751783468956,-460.0,0.00019452,2]
[369925713,1751783468966,-541.5783715,0.00019452,2]
[369925714,1751783468975,-460.0,0.00019452,2]
[369925715,1751783468985,-460.0,0.00019452,2]
[369925716,1751783468994,-493.06139738,0.00019452,2]
[369925717,1751783469003,-460.0,0.00019452,2]
[369925718,1751783469012,-567.28277853,0.00019452,2]
[369925719,1751783469021,-460.0,0.00019452,2]
[369925720,1751783469030,-561.52217887,0.00019452,2]
[369925721,1751783469040,-460.0,0.00019452,2]
[369925722,1751783469049,-460.0,0.00019452,2]
[369925723,1751783469058,-460.0,0.00019452,2]
[369925724,1751783469067,-460.0,0.00019452,2]
[369925725,1751783469076,-460.0,0.00019452,2]
[369925726,1751783469085,-460.0,0.00019452,2]
[369925727,1751783469095,-460.0,0.00019452,2]
[369925728,1751783469104,-468.59429756,0.00019452,2]
[369925729,1751783469113,-460.0,0.00019452,2]
[369925730,1751783469123,-462.15970659,0.00019452,2]
[369925731,1751783469131,-460.0,0.00019452,2]
[369925732,1751783469141,-460.0,0.00019452,2]
[369925733,1751783469150,-466.11040709,0.00019452,2]
[369925734,1751783469160,-464.4213847,0.00019452,2]
[369925735,1751783469169,-460.0,0.00019452,2]
[369925736,1751783469178,-460.0,0.00019452,2]
[369925737,1751783469187,-460.0,0.00019452,2]
[369925738,1751783469197,-460.0,0.00019452,2]
[369925739,1751783469206,-460.0,0.00019452,2]
[369925740,1751783469215,-460.0,0.00019452,2]
[369925741,1751783469224,-460.0,0.00019452,2]
[369925742,1751783469234,-460.0,0.00019452,2]
[369925743,1751783469243,-460.0,0.00019452,2]
[369925744,1751783469253,-460.0,0.00019452,2]
[369925745,1751783469262,-604.05735808,0.00019452,2]
[369925746,1751783469271,-464.95228202,0.00019452,2]
[369925747,1751783469280,-460.0,0.00019452,2]
[369925748,1751783469289,-460.0,0.00019452,2]
[369925749,1751783469299,-460.0,0.00019452,2]
[369925750,1751783469308,-460.0,0.00019452,2]
[369925751,1751783469318,-460.0,0.00019452,2]
[369925752,1751783469327,-460.0,0.00019452,2]